[Event "Titled Tuesday Blitz April 4 Early 2023"]
[White "Rodchenkov, Sergey D."]
[Black "Fernandez Sanchez, Mario Andres"]
[WhiteFideId "4168712"]
[BlackFideId "6501621"]
[WhiteElo "2277"]
[BlackElo "2050"]
[Result "0-1"]
[Round "05"]
[TimeControl "180+2"]
[Date "2023.04.04"]
[WhiteClock "0:00:13"]
[BlackClock "0:00:15"]

1. e4 {[%clk 0:03:00]}  c5 {[%clk 0:02:59]} 2. Nf3 {[%clk 0:03:00]}  Nc6 {[%clk 0:02:59]} 3. d4 {[%clk 0:03:01]}  cxd4 {[%clk 0:02:59]} 4. Nxd4 {[%clk 0:03:01]}  g6 {[%clk 0:03:00]} 5. c4 {[%clk 0:02:59]}  Nxd4 {[%clk 0:02:59]} 6. Qxd4 {[%clk 0:02:59]}  Nf6 {[%clk 0:02:59]} 7. e5 {[%clk 0:02:53]}  Ng8 {[%clk 0:02:59]} 8. e6 {[%clk 0:02:47]}  Nf6 {[%clk 0:02:59]} 9. exf7+ {[%clk 0:02:44]}  Kxf7 {[%clk 0:03:00]} 10. Nc3 {[%clk 0:02:42]}  Bg7 {[%clk 0:02:58]} 11. g3 {[%clk 0:02:37]}  d6 {[%clk 0:02:56]} 12. Bg2 {[%clk 0:02:36]}  Rf8 {[%clk 0:02:56]} 13. O-O {[%clk 0:02:35]}  Kg8 {[%clk 0:02:54]} 14. Bg5 {[%clk 0:02:32]}  Qc7 {[%clk 0:02:50]} 15. Rae1 {[%clk 0:02:23]}  Bf5 {[%clk 0:02:35]} 16. Qd1 {[%clk 0:01:09]}  Qd7 {[%clk 0:02:34]} 17. Re3 {[%clk 0:00:48]}  Rae8 {[%clk 0:02:27]} 18. Rfe1 {[%clk 0:00:40]}  h6 {[%clk 0:02:28]} 19. Bxf6 {[%clk 0:00:33]}  Bxf6 {[%clk 0:02:29]} 20. b3 {[%clk 0:00:30]}  Kh7 {[%clk 0:02:15]} 21. Nd5 {[%clk 0:00:29]}  e5 {[%clk 0:02:07]} 22. h4 {[%clk 0:00:18]}  Bg7 {[%clk 0:02:01]} 23. Qd2 {[%clk 0:00:11]}  b6 {[%clk 0:01:57]} 24. Be4 {[%clk 0:00:12]}  Bxe4 {[%clk 0:01:55]} 25. Rxe4 {[%clk 0:00:13]}  Rf3 {[%clk 0:01:52]} 26. Qe2 {[%clk 0:00:13]}  Ref8 {[%clk 0:01:52]} 27. Nf4 {[%clk 0:00:12]}  Qg4 {[%clk 0:01:46]} 28. Ng2 {[%clk 0:00:05]}  Qh5 {[%clk 0:01:36]} 29. Rf1 {[%clk 0:00:05]}  g5 {[%clk 0:01:27]} 30. g4 {[%clk 0:00:05]}  Qe8 {[%clk 0:01:21]} 31. h5 {[%clk 0:00:06]}  Qe6 {[%clk 0:01:21]} 32. Re3 {[%clk 0:00:03]}  Qxg4 {[%clk 0:01:19]} 33. Rxf3 {[%clk 0:00:03]}  Qxf3 {[%clk 0:01:18]} 34. Qxf3 {[%clk 0:00:04]}  Rxf3 {[%clk 0:01:19]} 35. Rd1 {[%clk 0:00:04]}  Bf8 {[%clk 0:01:19]} 36. Ne3 {[%clk 0:00:05]}  Kg7 {[%clk 0:01:09]} 37. Kg2 {[%clk 0:00:05]}  Rf7 {[%clk 0:01:05]} 38. a4 {[%clk 0:00:06]}  Kf6 {[%clk 0:01:01]} 39. f3 {[%clk 0:00:05]}  Ke6 {[%clk 0:01:01]} 40. Nd5 {[%clk 0:00:06]}  Rb7 {[%clk 0:00:56]} 41. Kg3 {[%clk 0:00:06]}  a6 {[%clk 0:00:56]} 42. Kg4 {[%clk 0:00:06]}  b5 {[%clk 0:00:56]} 43. axb5 {[%clk 0:00:07]}  axb5 {[%clk 0:00:56]} 44. cxb5 {[%clk 0:00:08]}  Bg7 {[%clk 0:00:48]} 45. b6 {[%clk 0:00:08]}  Bf8 {[%clk 0:00:46]} 46. b4 {[%clk 0:00:08]}  Be7 {[%clk 0:00:27]} 47. b5 {[%clk 0:00:08]}  Bd8 {[%clk 0:00:27]} 48. Ne3 {[%clk 0:00:09]}  Rxb6 {[%clk 0:00:26]} 49. Nf5 {[%clk 0:00:09]}  Rxb5 {[%clk 0:00:24]} 50. Nxh6 {[%clk 0:00:09]}  Rb4+ {[%clk 0:00:24]} 51. Kg3 {[%clk 0:00:09]}  Rh4 {[%clk 0:00:21]} 52. Ng4 {[%clk 0:00:04]}  Rxh5 {[%clk 0:00:20]} 53. Rb1 {[%clk 0:00:05]}  Rh7 {[%clk 0:00:19]} 54. Rb8 {[%clk 0:00:05]}  Rd7 {[%clk 0:00:20]} 55. Rc8 {[%clk 0:00:05]}  d5 {[%clk 0:00:19]} 56. Nf2 {[%clk 0:00:05]}  Bc7 {[%clk 0:00:18]} 57. Re8+ {[%clk 0:00:05]}  Kf7 {[%clk 0:00:18]} 58. Rh8 {[%clk 0:00:04]}  e4+ {[%clk 0:00:19]} 59. Kg2 {[%clk 0:00:04]}  e3 {[%clk 0:00:18]} 60. Nd3 {[%clk 0:00:04]}  d4 {[%clk 0:00:18]} 61. Rh7+ {[%clk 0:00:04]}  Ke6 {[%clk 0:00:18]} 62. Rh6+ {[%clk 0:00:04]}  Kf5 {[%clk 0:00:18]} 63. Kf1 {[%clk 0:00:05]}  Bf4 {[%clk 0:00:18]} 64. Ke2 {[%clk 0:00:06]}  Ra7 {[%clk 0:00:18]} 65. Rc6 {[%clk 0:00:06]}  Ra2+ {[%clk 0:00:18]} 66. Ke1 {[%clk 0:00:05]}  Rd2 {[%clk 0:00:18]} 67. Nxf4 {[%clk 0:00:05]}  Kxf4 {[%clk 0:00:17]} 68. Rf6+ {[%clk 0:00:05]}  Kg3 {[%clk 0:00:17]} 69. Rf5 {[%clk 0:00:06]}  Ra2 {[%clk 0:00:16]} 70. Rxg5+ {[%clk 0:00:06]}  Kxf3 {[%clk 0:00:16]} 71. Rf5+ {[%clk 0:00:07]}  Ke4 {[%clk 0:00:17]} 72. Rh5 {[%clk 0:00:07]}  d3 {[%clk 0:00:17]} 73. Rh4+ {[%clk 0:00:07]}  Kf5 {[%clk 0:00:16]} 74. Kf1 {[%clk 0:00:05]}  Ra1+ {[%clk 0:00:16]} 75. Kg2 {[%clk 0:00:05]}  d2 {[%clk 0:00:16]} 76. Rh5+ {[%clk 0:00:06]}  Kg6 {[%clk 0:00:15]} 77. Rd5 {[%clk 0:00:06]}  d1=Q {[%clk 0:00:15]} 78. Rxd1 {[%clk 0:00:07]}  Rxd1 {[%clk 0:00:16]} 79. Kf3 {[%clk 0:00:08]}  Rd8 {[%clk 0:00:14]} 80. Ke2 {[%clk 0:00:09]}  Kf5 {[%clk 0:00:14]} 81. Kxe3 {[%clk 0:00:10]}  Rd7 {[%clk 0:00:14]} 82. Kf3 {[%clk 0:00:10]}  Rd3+ {[%clk 0:00:14]} 83. Ke2 {[%clk 0:00:11]}  Ra3 {[%clk 0:00:15]} 84. Kd2 {[%clk 0:00:11]}  Ke4 {[%clk 0:00:15]} 85. Kc2 {[%clk 0:00:12]}  Rg3 {[%clk 0:00:15]} 86. Kb2 {[%clk 0:00:13]}  Rh3 {[%clk 0:00:15]} 0-1


[Site "https://www.chess.com"]

[Event "Titled Tuesday Blitz April 4 Early 2023"]
[White "Qashashvili, Alexandre"]
[Black "Vakhidov, Shahzod"]
[WhiteFideId "13600842"]
[BlackFideId "14205270"]
[WhiteElo "2405"]
[BlackElo "2212"]
[Result "0-1"]
[Round "05"]
[TimeControl "180+2"]
[Date "2023.04.04"]
[WhiteClock "0:00:09"]
[BlackClock "0:00:27"]

1. e4 {[%clk 0:02:46]}  c5 {[%clk 0:02:59]} 2. Nc3 {[%clk 0:02:47]}  g6 {[%clk 0:02:59]} 3. Nf3 {[%clk 0:02:45]}  Bg7 {[%clk 0:02:59]} 4. Bc4 {[%clk 0:02:43]}  Nc6 {[%clk 0:02:58]} 5. d3 {[%clk 0:02:43]}  e6 {[%clk 0:02:59]} 6. Bf4 {[%clk 0:02:42]}  d6 {[%clk 0:02:55]} 7. Qd2 {[%clk 0:02:40]}  a6 {[%clk 0:02:52]} 8. a4 {[%clk 0:02:39]}  Nd4 {[%clk 0:02:44]} 9. Nxd4 {[%clk 0:02:25]}  cxd4 {[%clk 0:02:40]} 10. Ne2 {[%clk 0:02:24]}  d5 {[%clk 0:02:35]} 11. exd5 {[%clk 0:02:24]}  exd5 {[%clk 0:02:36]} 12. Bb3 {[%clk 0:02:23]}  Be6 {[%clk 0:02:34]} 13. O-O {[%clk 0:02:20]}  Ne7 {[%clk 0:02:19]} 14. Bh6 {[%clk 0:02:19]}  Bxh6 {[%clk 0:02:18]} 15. Qxh6 {[%clk 0:02:18]}  Nf5 {[%clk 0:01:53]} 16. Qf4 {[%clk 0:02:11]}  Qb6 {[%clk 0:01:45]} 17. g4 {[%clk 0:02:05]}  Nh4 {[%clk 0:01:45]} 18. Qf6 {[%clk 0:01:57]}  g5 {[%clk 0:00:52]} 19. Qxh8+ {[%clk 0:01:46]}  Ke7 {[%clk 0:00:50]} 20. Qxa8 {[%clk 0:01:41]}  Nf3+ {[%clk 0:00:37]} 21. Kg2 {[%clk 0:01:39]}  Bxg4 {[%clk 0:00:35]} 22. Ng3 {[%clk 0:01:34]}  Qh6 {[%clk 0:00:30]} 23. Qxb7+ {[%clk 0:00:32]}  Kf8 {[%clk 0:00:28]} 24. Qb8+ {[%clk 0:00:28]}  Kg7 {[%clk 0:00:27]} 25. h4 {[%clk 0:00:13]}  Nxh4+ {[%clk 0:00:26]} 26. Kh1 {[%clk 0:00:08]}  Nf3+ {[%clk 0:00:26]} 27. Nh5+ {[%clk 0:00:09]}  Qxh5+ {[%clk 0:00:26]} 28. Kg2 {[%clk 0:00:09]}  Qh3# {[%clk 0:00:27]} 0-1


[Site "https://www.chess.com"]

[Event "Titled Tuesday Blitz April 4 Early 2023"]
[White "Vargas Rodriguez, Wilver"]
[Black "Shevtchenko, Olesya"]
[WhiteFideId "3509672"]
[BlackFideId "24131890"]
[WhiteElo "2224"]
[BlackElo "2003"]
[Result "0-1"]
[Round "05"]
[TimeControl "180+2"]
[Date "2023.04.04"]
[WhiteClock "0:00:23"]
[BlackClock "0:01:06"]

1. e4 {[%clk 0:03:00]}  c6 {[%clk 0:02:59]} 2. Nc3 {[%clk 0:02:55]}  d5 {[%clk 0:03:00]} 3. d3 {[%clk 0:02:55]}  e5 {[%clk 0:02:57]} 4. g3 {[%clk 0:02:53]}  Nf6 {[%clk 0:02:53]} 5. Bg2 {[%clk 0:02:52]}  Bc5 {[%clk 0:02:53]} 6. Nge2 {[%clk 0:01:29]}  O-O {[%clk 0:02:50]} 7. O-O {[%clk 0:01:28]}  h6 {[%clk 0:02:50]} 8. h3 {[%clk 0:01:26]}  Be6 {[%clk 0:02:49]} 9. Kh2 {[%clk 0:01:26]}  dxe4 {[%clk 0:02:46]} 10. dxe4 {[%clk 0:01:03]}  Qxd1 {[%clk 0:02:45]} 11. Nxd1 {[%clk 0:01:04]}  Na6 {[%clk 0:02:42]} 12. Be3 {[%clk 0:01:02]}  Rfd8 {[%clk 0:02:34]} 13. a3 {[%clk 0:00:52]}  Bxe3 {[%clk 0:02:20]} 14. Nxe3 {[%clk 0:00:53]}  Nc5 {[%clk 0:02:19]} 15. Nc3 {[%clk 0:00:52]}  a5 {[%clk 0:02:18]} 16. Rad1 {[%clk 0:00:51]}  Kf8 {[%clk 0:02:16]} 17. Rxd8+ {[%clk 0:00:49]}  Rxd8 {[%clk 0:02:16]} 18. Rd1 {[%clk 0:00:50]}  Rxd1 {[%clk 0:02:16]} 19. Nexd1 {[%clk 0:00:51]}  b5 {[%clk 0:02:12]} 20. b3 {[%clk 0:00:51]}  Ke7 {[%clk 0:02:02]} 21. f3 {[%clk 0:00:49]}  Kd7 {[%clk 0:02:00]} 22. a4 {[%clk 0:00:47]}  b4 {[%clk 0:01:57]} 23. Nb1 {[%clk 0:00:47]}  Ne8 {[%clk 0:01:36]} 24. Bf1 {[%clk 0:00:46]}  Nd6 {[%clk 0:01:34]} 25. Nd2 {[%clk 0:00:46]}  f5 {[%clk 0:01:26]} 26. Nf2 {[%clk 0:00:40]}  fxe4 {[%clk 0:01:14]} 27. Nfxe4 {[%clk 0:00:39]}  Ncxe4 {[%clk 0:01:07]} 28. Nxe4 {[%clk 0:00:39]}  Nxe4 {[%clk 0:01:06]} 29. fxe4 {[%clk 0:00:40]}  Kd6 {[%clk 0:01:05]} 30. Kg2 {[%clk 0:00:40]}  Kc5 {[%clk 0:01:05]} 31. Kf3 {[%clk 0:00:37]}  Kd4 {[%clk 0:01:06]} 32. g4 {[%clk 0:00:34]}  g5 {[%clk 0:01:04]} 33. Bd3 {[%clk 0:00:28]}  Bxb3 {[%clk 0:01:03]} 34. cxb3 {[%clk 0:00:27]}  Kxd3 {[%clk 0:01:04]} 35. h4 {[%clk 0:00:25]}  Kc3 {[%clk 0:01:03]} 36. hxg5 {[%clk 0:00:22]}  hxg5 {[%clk 0:01:04]} 37. Ke3 {[%clk 0:00:23]}  Kxb3 {[%clk 0:01:05]} 38. Kd3 {[%clk 0:00:22]}  c5 {[%clk 0:01:05]} 39. Kd2 {[%clk 0:00:22]}  c4 {[%clk 0:01:06]} 40. Kc1 {[%clk 0:00:22]}  c3 {[%clk 0:01:07]} 41. Kb1 {[%clk 0:00:23]}  Kxa4 {[%clk 0:01:06]} 42. Ka2 {[%clk 0:00:22]}  b3+ {[%clk 0:01:07]} 43. Ka1 {[%clk 0:00:23]}  Kb4 {[%clk 0:01:08]} 44. Kb1 {[%clk 0:00:23]}  a4 {[%clk 0:01:08]} 45. Ka1 {[%clk 0:00:23]}  a3 {[%clk 0:01:09]} 46. Kb1 {[%clk 0:00:23]}  c2+ {[%clk 0:01:07]} 47. Ka1 {[%clk 0:00:23]}  c1=Q# {[%clk 0:01:06]} 0-1


[Site "https://www.chess.com"]

[Event "Titled Tuesday Blitz April 4 Early 2023"]
[White "Semenova, Alina"]
[Black "Roebers, Eline"]
[WhiteFideId "24113875"]
[BlackFideId "1058401"]
[WhiteElo "1833"]
[BlackElo "2512"]
[Result "0-1"]
[Round "05"]
[TimeControl "180+2"]
[Date "2023.04.04"]
[WhiteClock "0:00:04"]
[BlackClock "0:02:06"]

1. e4 {[%clk 0:00:24]}  c5 {[%clk 0:02:52]} 2. Nf3 {[%clk 0:00:21]}  e6 {[%clk 0:02:52]} 3. d4 {[%clk 0:00:21]}  cxd4 {[%clk 0:02:53]} 4. Nxd4 {[%clk 0:00:21]}  Nc6 {[%clk 0:02:53]} 5. Nc3 {[%clk 0:00:21]}  Nf6 {[%clk 0:02:53]} 6. Nxc6 {[%clk 0:00:20]}  bxc6 {[%clk 0:02:54]} 7. e5 {[%clk 0:00:21]}  Nd5 {[%clk 0:02:54]} 8. Ne4 {[%clk 0:00:22]}  Qc7 {[%clk 0:02:54]} 9. c4 {[%clk 0:00:21]}  Qxe5 {[%clk 0:02:53]} 10. cxd5 {[%clk 0:00:21]}  Qxe4+ {[%clk 0:02:52]} 11. Be2 {[%clk 0:00:22]}  Qxd5 {[%clk 0:02:51]} 12. O-O {[%clk 0:00:22]}  Be7 {[%clk 0:02:48]} 13. Qc2 {[%clk 0:00:20]}  O-O {[%clk 0:02:43]} 14. Bf3 {[%clk 0:00:19]}  Qa5 {[%clk 0:02:42]} 15. Bd2 {[%clk 0:00:17]}  Qb6 {[%clk 0:02:40]} 16. Be3 {[%clk 0:00:18]}  Qb5 {[%clk 0:02:37]} 17. Be2 {[%clk 0:00:17]}  Qa5 {[%clk 0:02:33]} 18. Bd2 {[%clk 0:00:16]}  Qc7 {[%clk 0:02:33]} 19. Bd3 {[%clk 0:00:14]}  f5 {[%clk 0:02:31]} 20. Qc4 {[%clk 0:00:12]}  Rb8 {[%clk 0:02:26]} 21. b3 {[%clk 0:00:12]}  Bd6 {[%clk 0:02:19]} 22. h3 {[%clk 0:00:08]}  Rb5 {[%clk 0:02:14]} 23. a4 {[%clk 0:00:07]}  Rc5 {[%clk 0:02:12]} 24. Qd4 {[%clk 0:00:07]}  Rd5 {[%clk 0:02:11]} 25. Qc3 {[%clk 0:00:06]}  Bh2+ {[%clk 0:02:10]} 26. Kh1 {[%clk 0:00:04]}  Be5 {[%clk 0:02:11]} 27. Qc2 {[%clk 0:00:03]}  Bxa1 {[%clk 0:02:10]} 28. Rxa1 {[%clk 0:00:04]}  Qe5 {[%clk 0:02:08]} 29. Bb4 {[%clk 0:00:04]}  Qxa1+ {[%clk 0:02:06]} 0-1


[Site "https://www.chess.com"]

[Event "Titled Tuesday Blitz April 4 Early 2023"]
[White "Sadykov, Ramil"]
[Black "Petrova, Irina"]
[WhiteFideId "24113590"]
[BlackFideId "14124122"]
[WhiteElo "2245"]
[BlackElo "2084"]
[Result "0-1"]
[Round "05"]
[TimeControl "180+2"]
[Date "2023.04.04"]
[WhiteClock "0:00:01"]
[BlackClock "0:00:16"]

1. d4 {[%clk 0:02:40]}  d6 {[%clk 0:03:00]} 2. e4 {[%clk 0:02:38]}  Nf6 {[%clk 0:03:00]} 3. Nc3 {[%clk 0:02:37]}  e5 {[%clk 0:03:00]} 4. Nf3 {[%clk 0:02:37]}  Nbd7 {[%clk 0:03:00]} 5. Bc4 {[%clk 0:02:37]}  Be7 {[%clk 0:03:00]} 6. O-O {[%clk 0:02:37]}  c6 {[%clk 0:03:00]} 7. a4 {[%clk 0:02:37]}  h6 {[%clk 0:03:00]} 8. a5 {[%clk 0:02:34]}  Qc7 {[%clk 0:02:55]} 9. Re1 {[%clk 0:02:28]}  g5 {[%clk 0:02:46]} 10. d5 {[%clk 0:02:21]}  Nf8 {[%clk 0:02:46]} 11. Nd2 {[%clk 0:02:02]}  Ng6 {[%clk 0:02:43]} 12. Nf1 {[%clk 0:02:01]}  O-O {[%clk 0:02:32]} 13. Ne3 {[%clk 0:01:54]}  Nf4 {[%clk 0:02:28]} 14. g3 {[%clk 0:01:52]}  Ng6 {[%clk 0:02:19]} 15. Bb3 {[%clk 0:01:41]}  Bh3 {[%clk 0:02:17]} 16. a6 {[%clk 0:01:35]}  Rab8 {[%clk 0:02:08]} 17. axb7 {[%clk 0:01:32]}  Qxb7 {[%clk 0:02:06]} 18. dxc6 {[%clk 0:01:30]}  Qxc6 {[%clk 0:02:07]} 19. Rxa7 {[%clk 0:01:22]}  Nxe4 {[%clk 0:01:45]} 20. Qd5 {[%clk 0:01:10]}  Qxd5 {[%clk 0:01:33]} 21. Nexd5 {[%clk 0:00:56]}  Nxc3 {[%clk 0:01:32]} 22. Nxc3 {[%clk 0:00:54]}  Kg7 {[%clk 0:01:23]} 23. f3 {[%clk 0:00:46]}  d5 {[%clk 0:01:19]} 24. Rxe7 {[%clk 0:00:40]}  Nxe7 {[%clk 0:01:18]} 25. Rxe5 {[%clk 0:00:40]}  Ng6 {[%clk 0:01:14]} 26. Rxd5 {[%clk 0:00:39]}  Rfe8 {[%clk 0:01:10]} 27. Kf2 {[%clk 0:00:39]}  Rbd8 {[%clk 0:01:00]} 28. Be3 {[%clk 0:00:36]}  Ne7 {[%clk 0:00:48]} 29. Bd4+ {[%clk 0:00:27]}  f6 {[%clk 0:00:44]} 30. Rxd8 {[%clk 0:00:18]}  Rxd8 {[%clk 0:00:45]} 31. Be3 {[%clk 0:00:16]}  Bf5 {[%clk 0:00:44]} 32. g4 {[%clk 0:00:14]}  Bg6 {[%clk 0:00:42]} 33. Ne4 {[%clk 0:00:12]}  Bxe4 {[%clk 0:00:41]} 34. fxe4 {[%clk 0:00:13]}  Nc6 {[%clk 0:00:41]} 35. h3 {[%clk 0:00:12]}  Ne5 {[%clk 0:00:41]} 36. Ke2 {[%clk 0:00:12]}  Rc8 {[%clk 0:00:37]} 37. Bd4 {[%clk 0:00:12]}  Nc6 {[%clk 0:00:34]} 38. Bc3 {[%clk 0:00:11]}  Ne5 {[%clk 0:00:32]} 39. Ke3 {[%clk 0:00:11]}  Kf8 {[%clk 0:00:32]} 40. Bd5 {[%clk 0:00:10]}  Ke7 {[%clk 0:00:28]} 41. Kd2 {[%clk 0:00:08]}  Nc4+ {[%clk 0:00:26]} 42. Kd3 {[%clk 0:00:07]}  Ne5+ {[%clk 0:00:23]} 43. Kd4 {[%clk 0:00:08]}  Nf3+ {[%clk 0:00:21]} 44. Ke3 {[%clk 0:00:08]}  Ne5 {[%clk 0:00:21]} 45. Kd2 {[%clk 0:00:05]}  Kd6 {[%clk 0:00:20]} 46. Bd4 {[%clk 0:00:05]}  Nf3+ {[%clk 0:00:19]} 47. Kd3 {[%clk 0:00:02]}  Nxd4 {[%clk 0:00:20]} 48. Kxd4 {[%clk 0:00:02]}  Rxc2 {[%clk 0:00:20]} 49. b4 {[%clk 0:00:02]}  Rh2 {[%clk 0:00:18]} 50. b5 {[%clk 0:00:02]}  Rxh3 {[%clk 0:00:18]} 51. b6 {[%clk 0:00:02]}  Rh2 {[%clk 0:00:17]} 52. Kc3 {[%clk 0:00:02]}  h5 {[%clk 0:00:15]} 53. gxh5 {[%clk 0:00:01]}  Rxh5 {[%clk 0:00:16]} 0-1


[Site "https://www.chess.com"]

[Event "Titled Tuesday Blitz April 4 Early 2023"]
[White "Manukyan, Artyom"]
[Black "Kim, Sergey"]
[WhiteFideId "13305786"]
[BlackFideId "13700570"]
[WhiteElo "2078"]
[BlackElo "2600"]
[Result "1-0"]
[Round "05"]
[TimeControl "180+2"]
[Date "2023.04.04"]
[WhiteClock "0:00:17"]
[BlackClock "0:00:38"]

1. e4 {[%clk 0:02:57]}  e5 {[%clk 0:02:59]} 2. Nf3 {[%clk 0:02:57]}  Nc6 {[%clk 0:02:59]} 3. d4 {[%clk 0:02:58]}  exd4 {[%clk 0:02:59]} 4. Nxd4 {[%clk 0:02:58]}  Bc5 {[%clk 0:02:58]} 5. Nb3 {[%clk 0:02:58]}  Bb6 {[%clk 0:02:57]} 6. Nc3 {[%clk 0:02:59]}  Nf6 {[%clk 0:02:56]} 7. Qe2 {[%clk 0:02:59]}  d6 {[%clk 0:02:56]} 8. Be3 {[%clk 0:02:59]}  Be6 {[%clk 0:02:56]} 9. O-O-O {[%clk 0:02:59]}  Qe7 {[%clk 0:02:56]} 10. f3 {[%clk 0:02:55]}  O-O-O {[%clk 0:02:56]} 11. Kb1 {[%clk 0:02:56]}  Rhe8 {[%clk 0:02:56]} 12. Bxb6 {[%clk 0:02:53]}  axb6 {[%clk 0:02:56]} 13. Qb5 {[%clk 0:02:52]}  Kb8 {[%clk 0:02:55]} 14. Qa4 {[%clk 0:02:51]}  Bd7 {[%clk 0:02:53]} 15. Nb5 {[%clk 0:02:49]}  Qe5 {[%clk 0:02:48]} 16. Bc4 {[%clk 0:02:46]}  Re7 {[%clk 0:02:32]} 17. Bd5 {[%clk 0:02:21]}  Nxd5 {[%clk 0:02:23]} 18. exd5 {[%clk 0:02:21]}  Na5 {[%clk 0:02:21]} 19. Nxa5 {[%clk 0:02:19]}  bxa5 {[%clk 0:02:19]} 20. Qxa5 {[%clk 0:02:20]}  Bxb5 {[%clk 0:02:19]} 21. Qxb5 {[%clk 0:02:21]}  Rde8 {[%clk 0:02:15]} 22. a4 {[%clk 0:02:20]}  Qe2 {[%clk 0:02:13]} 23. Rd3 {[%clk 0:02:09]}  Qxg2 {[%clk 0:01:52]} 24. Rhd1 {[%clk 0:02:06]}  Re1 {[%clk 0:01:50]} 25. a5 {[%clk 0:02:05]}  Ka7 {[%clk 0:01:46]} 26. a6 {[%clk 0:01:16]}  b6 {[%clk 0:01:23]} 27. Rc3 {[%clk 0:00:34]}  Rxd1+ {[%clk 0:01:03]} 28. Ka2 {[%clk 0:00:33]}  Re7 {[%clk 0:00:47]} 29. Qc6 {[%clk 0:00:18]}  Ra1+ {[%clk 0:00:38]} 30. Kxa1 {[%clk 0:00:17]}  Qf1+ {[%clk 0:00:38]} 31. Ka2 {[%clk 0:00:17]} 1-0


[Site "https://www.chess.com"]

[Event "Titled Tuesday Blitz April 4 Early 2023"]
[White "Ibadov, Dashgyn"]
[Black "Tarasova, Viktoriya"]
[WhiteFideId "24107514"]
[BlackFideId "4175840"]
[WhiteElo "2208"]
[BlackElo "2182"]
[Result "1-0"]
[Round "05"]
[TimeControl "180+2"]
[Date "2023.04.04"]
[WhiteClock "0:00:04"]
[BlackClock "0:00:05"]

1. e4 {[%clk 0:03:00]}  e5 {[%clk 0:02:54]} 2. Nf3 {[%clk 0:03:00]}  Nc6 {[%clk 0:02:52]} 3. d4 {[%clk 0:03:00]}  exd4 {[%clk 0:02:52]} 4. Nxd4 {[%clk 0:03:01]}  Nf6 {[%clk 0:02:52]} 5. Nxc6 {[%clk 0:03:01]}  bxc6 {[%clk 0:02:52]} 6. e5 {[%clk 0:03:02]}  Qe7 {[%clk 0:02:52]} 7. Qe2 {[%clk 0:03:02]}  Nd5 {[%clk 0:02:53]} 8. c4 {[%clk 0:03:03]}  Nb6 {[%clk 0:02:53]} 9. Nd2 {[%clk 0:03:00]}  Qe6 {[%clk 0:02:52]} 10. b3 {[%clk 0:03:00]}  a5 {[%clk 0:02:52]} 11. Bb2 {[%clk 0:02:58]}  a4 {[%clk 0:02:52]} 12. Qe3 {[%clk 0:02:55]}  Bb4 {[%clk 0:02:51]} 13. Bd3 {[%clk 0:02:45]}  O-O {[%clk 0:02:51]} 14. O-O {[%clk 0:02:39]}  d5 {[%clk 0:02:42]} 15. Nf3 {[%clk 0:02:19]}  h6 {[%clk 0:02:29]} 16. c5 {[%clk 0:02:08]}  Nd7 {[%clk 0:02:28]} 17. Bd4 {[%clk 0:01:53]}  a3 {[%clk 0:02:16]} 18. Rac1 {[%clk 0:01:49]}  Ba6 {[%clk 0:02:13]} 19. Bxa6 {[%clk 0:01:38]}  Rxa6 {[%clk 0:02:13]} 20. Qd3 {[%clk 0:01:28]}  Ra5 {[%clk 0:02:13]} 21. Qe3 {[%clk 0:01:15]}  Qe7 {[%clk 0:02:08]} 22. Rc2 {[%clk 0:01:09]}  Rb8 {[%clk 0:02:02]} 23. g3 {[%clk 0:01:07]}  Rbb5 {[%clk 0:02:01]} 24. Rfc1 {[%clk 0:01:04]}  Bxc5 {[%clk 0:01:57]} 25. b4 {[%clk 0:00:57]}  Bxb4 {[%clk 0:01:39]} 26. Rxc6 {[%clk 0:00:57]}  Nc5 {[%clk 0:01:23]} 27. Rd6 {[%clk 0:00:41]}  cxd6 {[%clk 0:01:13]} 28. Nh4 {[%clk 0:00:37]}  dxe5 {[%clk 0:00:52]} 29. Bxe5 {[%clk 0:00:13]}  f6 {[%clk 0:00:32]} 30. Nf5 {[%clk 0:00:11]}  Qxe5 {[%clk 0:00:28]} 31. Qf3 {[%clk 0:00:11]}  Qe4 {[%clk 0:00:25]} 32. Qh5 {[%clk 0:00:11]}  Qe6 {[%clk 0:00:16]} 33. Qg6 {[%clk 0:00:10]}  Ra7 {[%clk 0:00:11]} 34. Nxh6+ {[%clk 0:00:09]}  Kf8 {[%clk 0:00:11]} 35. Qh7 {[%clk 0:00:09]}  Bd2 {[%clk 0:00:07]} 36. Qh8+ {[%clk 0:00:07]}  Ke7 {[%clk 0:00:07]} 37. Qxg7+ {[%clk 0:00:07]}  Kd6 {[%clk 0:00:08]} 38. Qxa7 {[%clk 0:00:04]}  Bxc1 {[%clk 0:00:08]} 39. Nf7+ {[%clk 0:00:05]}  Kc6 {[%clk 0:00:08]} 40. Nd8+ {[%clk 0:00:05]}  Kd6 {[%clk 0:00:09]} 41. Nxe6 {[%clk 0:00:04]}  Nxe6 {[%clk 0:00:09]} 42. Qa6+ {[%clk 0:00:04]}  Kc5 {[%clk 0:00:09]} 43. Qxe6 {[%clk 0:00:04]}  Rb1 {[%clk 0:00:10]} 44. Kg2 {[%clk 0:00:02]}  Bb2 {[%clk 0:00:10]} 45. Qc8+ {[%clk 0:00:02]}  Kd4 {[%clk 0:00:10]} 46. h4 {[%clk 0:00:03]}  Rc1 {[%clk 0:00:10]} 47. Qb7 {[%clk 0:00:02]}  Rc4 {[%clk 0:00:08]} 48. h5 {[%clk 0:00:02]}  f5 {[%clk 0:00:08]} 49. h6 {[%clk 0:00:03]}  Kd3 {[%clk 0:00:09]} 50. h7 {[%clk 0:00:03]}  Bd4 {[%clk 0:00:08]} 51. Qb3+ {[%clk 0:00:02]}  Ke4 {[%clk 0:00:08]} 52. Qxa3 {[%clk 0:00:02]}  Rc3 {[%clk 0:00:04]} 53. Qe7+ {[%clk 0:00:02]}  Kd3 {[%clk 0:00:03]} 54. Qf8 {[%clk 0:00:02]}  Rc2 {[%clk 0:00:04]} 55. h8=Q {[%clk 0:00:02]}  Rxf2+ {[%clk 0:00:04]} 56. Kh3 {[%clk 0:00:03]}  Bxh8 {[%clk 0:00:05]} 57. Qxh8 {[%clk 0:00:04]}  Rf1 {[%clk 0:00:05]} 58. Kg2 {[%clk 0:00:03]}  Rd1 {[%clk 0:00:05]} 59. Qe5 {[%clk 0:00:03]}  Rd2+ {[%clk 0:00:05]} 60. Kf3 {[%clk 0:00:03]}  Rxa2 {[%clk 0:00:05]} 61. Qxd5+ {[%clk 0:00:02]}  Kc3 {[%clk 0:00:05]} 62. Qxa2 {[%clk 0:00:03]}  Kd4 {[%clk 0:00:06]} 63. Kf4 {[%clk 0:00:04]}  Kc5 {[%clk 0:00:05]} 64. Kxf5 {[%clk 0:00:04]} 1-0


[Site "https://www.chess.com"]

[Event "Titled Tuesday Blitz April 4 Early 2023"]
[White "HamedWafa4"]
[Black "Jovic, Stanoje"]
[BlackFideId "905020"]
[WhiteElo "2362"]
[BlackElo "2236"]
[Result "1-0"]
[Round "05"]
[TimeControl "180+2"]
[Date "2023.04.04"]
[WhiteClock "0:01:03"]
[BlackClock "0:00:10"]

1. e4 {[%clk 0:02:56]}  c6 {[%clk 0:02:59]} 2. d4 {[%clk 0:02:51]}  d5 {[%clk 0:02:59]} 3. e5 {[%clk 0:02:51]}  c5 {[%clk 0:02:59]} 4. Nf3 {[%clk 0:02:48]}  Nc6 {[%clk 0:02:59]} 5. c4 {[%clk 0:02:47]}  Bg4 {[%clk 0:02:54]} 6. cxd5 {[%clk 0:02:46]}  Bxf3 {[%clk 0:02:54]} 7. Qxf3 {[%clk 0:02:44]}  Nxd4 {[%clk 0:02:54]} 8. Qd1 {[%clk 0:02:45]}  Qxd5 {[%clk 0:02:53]} 9. Bb5+ {[%clk 0:02:45]}  Kd8 {[%clk 0:02:53]} 10. O-O {[%clk 0:02:45]}  Qxe5 {[%clk 0:02:53]} 11. Re1 {[%clk 0:02:42]}  Qd6 {[%clk 0:02:52]} 12. Bc4 {[%clk 0:02:41]}  e6 {[%clk 0:02:44]} 13. Nc3 {[%clk 0:02:37]}  Nf6 {[%clk 0:02:42]} 14. Bg5 {[%clk 0:02:36]}  Kc7 {[%clk 0:02:27]} 15. Bh4 {[%clk 0:02:22]}  Nd7 {[%clk 0:01:56]} 16. Bg3 {[%clk 0:02:11]}  e5 {[%clk 0:01:56]} 17. Bxf7 {[%clk 0:02:11]}  Be7 {[%clk 0:01:44]} 18. Nd5+ {[%clk 0:01:40]}  Kb8 {[%clk 0:01:41]} 19. b4 {[%clk 0:01:27]}  Bf6 {[%clk 0:01:22]} 20. bxc5 {[%clk 0:01:21]}  Qxc5 {[%clk 0:01:17]} 21. Rc1 {[%clk 0:01:19]}  Qd6 {[%clk 0:00:43]} 22. Qxd4 {[%clk 0:01:15]}  Rf8 {[%clk 0:00:39]} 23. Nxf6 {[%clk 0:01:06]}  Qxf6 {[%clk 0:00:10]} 24. Qxd7 {[%clk 0:01:03]} 1-0


[Site "https://www.chess.com"]